[Event "*** Titled Tuesday 3|2 Blitz"]
[Site "Chess.com"]
[Date "2017.05.02"]
[Round "4"]
[White "Rodalquilar"]
[Black "eldur16"]
[Result "1/2-1/2"]
[WhiteElo "2538"]
[BlackElo "2455"]
[TimeControl "180+2"]
[EndTime "13:55:35 PDT"]
[Termination "Game drawn by repetition"]

1. d4 {[%clk 0:03:02]} 1... Nf6 {[%clk 0:03:00.2]} 2. Bf4 {[%clk 0:03:02.9]}
2... g6 {[%clk 0:03:00]} 3. e3 {[%clk 0:03:04]} 3... Bg7 {[%clk 0:03:00.9]} 4.
Nf3 {[%clk 0:03:05.3]} 4... O-O {[%clk 0:03:01.7]} 5. Be2 {[%clk 0:03:06.7]}
5... d6 {[%clk 0:03:02.7]} 6. O-O {[%clk 0:03:07.9]} 6... c5 {[%clk 0:03:03.2]}
7. c3 {[%clk 0:03:08.7]} 7... b6 {[%clk 0:03:03.6]} 8. h3 {[%clk 0:03:08.1]}
8... Bb7 {[%clk 0:03:04]} 9. Nbd2 {[%clk 0:03:09.3]} 9... Nbd7 {[%clk
0:03:04.4]} 10. a4 {[%clk 0:03:09.7]} 10... a6 {[%clk 0:03:02.4]} 11. Re1 {[%clk
0:03:05.8]} 11... Qc7 {[%clk 0:03:02.7]} 12. Bh2 {[%clk 0:03:05.4]} 12... Rfe8
{[%clk 0:02:58.9]} 13. Qb3 {[%clk 0:02:54.2]} 13... Bc6 {[%clk 0:02:57.3]} 14.
Bc4 {[%clk 0:02:50.4]} 14... e6 {[%clk 0:02:56]} 15. e4 {[%clk 0:02:32.7]} 15...
Qb7 {[%clk 0:02:51.2]} 16. Ng5 {[%clk 0:01:54.2]} 16... b5 {[%clk 0:02:45.3]}
17. axb5 {[%clk 0:01:50.5]} 17... axb5 {[%clk 0:02:45.7]} 18. Rxa8 {[%clk
0:01:48.5]} 18... Qxa8 {[%clk 0:02:34.9]} 19. Bxb5 {[%clk 0:01:49.7]} 19... Rb8
{[%clk 0:02:16.3]} 20. Bxc6 {[%clk 0:01:49.8]} 20... Qxc6 {[%clk 0:02:17]} 21.
Qa2 {[%clk 0:01:19]} 21... cxd4 {[%clk 0:02:04.2]} 22. cxd4 {[%clk 0:01:19.9]}
22... Qc2 {[%clk 0:02:05]} 23. Ngf3 {[%clk 0:01:17.6]} 23... Rxb2 {[%clk
0:02:02.7]} 24. Qa8+ {[%clk 0:01:01.5]} 24... Rb8 {[%clk 0:01:59]} 25. Qa7
{[%clk 0:01:03]} 25... e5 {[%clk 0:01:43.2]} 26. dxe5 {[%clk 0:00:55.2]} 26...
dxe5 {[%clk 0:01:43.5]} 27. Bxe5 {[%clk 0:00:44.4]} 27... Re8 {[%clk 0:01:40.7]}
28. Ba1 {[%clk 0:00:30.9]} 28... Nc5 {[%clk 0:01:24.9]} 29. e5 {[%clk
0:00:28.8]} 29... Nfd7 {[%clk 0:01:08.1]} 30. Qc7 {[%clk 0:00:18.6]} 30... Qa4
{[%clk 0:00:57.8]} 31. Bd4 {[%clk 0:00:14.9]} 31... Ne6 {[%clk 0:00:50.8]} 32.
Qa7 {[%clk 0:00:11.5]} 32... Qc6 {[%clk 0:00:41.3]} 33. Ba1 {[%clk 0:00:05.7]}
33... Ndc5 {[%clk 0:00:39.9]} 34. Rc1 {[%clk 0:00:04.3]} 34... Ra8 {[%clk
0:00:33.3]} 35. Qe7 {[%clk 0:00:04.7]} 35... Bf8 {[%clk 0:00:32.4]} 36. Qh4
{[%clk 0:00:05.8]} 36... Ra2 {[%clk 0:00:25.4]} 37. Qc4 {[%clk 0:00:06.2]} 37...
Qa8 {[%clk 0:00:24.8]} 38. Bd4 {[%clk 0:00:06.5]} 38... Nf4 {[%clk 0:00:20.4]}
39. Be3 {[%clk 0:00:06.7]} 39... Ncd3 {[%clk 0:00:20]} 40. Rf1 {[%clk 0:00:07]}
40... Ra4 {[%clk 0:00:15]} 41. Qc7 {[%clk 0:00:08.2]} 41... Ne6 {[%clk
0:00:14.4]} 42. Qc2 {[%clk 0:00:08.7]} 42... Qa6 {[%clk 0:00:14.6]} 43. Rd1
{[%clk 0:00:08.6]} 43... Ndf4 {[%clk 0:00:15.1]} 44. Nb3 {[%clk 0:00:07.9]}
44... Ra2 {[%clk 0:00:14.8]} 45. Qc1 {[%clk 0:00:07]} 45... Qe2 {[%clk
0:00:12.5]} 46. Re1 {[%clk 0:00:06.9]} 46... Nxh3+ {[%clk 0:00:10.3]} 47. Kh2
{[%clk 0:00:06.6]} 47... Qd3 {[%clk 0:00:08.4]} 48. gxh3 {[%clk 0:00:07.7]}
48... Qxb3 {[%clk 0:00:08.7]} 49. Nd4 {[%clk 0:00:07.9]} 49... Nxd4 {[%clk
0:00:07.6]} 50. Bxd4 {[%clk 0:00:09.8]} 50... Qd5 {[%clk 0:00:08.5]} 51. Qf4
{[%clk 0:00:10.4]} 51... Bh6 {[%clk 0:00:07.6]} 52. Qe4 {[%clk 0:00:10]} 52...
Qc4 {[%clk 0:00:06.6]} 53. e6 {[%clk 0:00:08.2]} 53... fxe6 {[%clk 0:00:05.6]}
54. Qxe6+ {[%clk 0:00:10.1]} 54... Qxe6 {[%clk 0:00:06.3]} 55. Rxe6 {[%clk
0:00:12]} 55... Bg7 {[%clk 0:00:06.9]} 56. Be3 {[%clk 0:00:11.9]} 56... Kf7
{[%clk 0:00:07.4]} 57. Rb6 {[%clk 0:00:12.9]} 57... Be5+ {[%clk 0:00:06.6]} 58.
Kg2 {[%clk 0:00:13.5]} 58... h5 {[%clk 0:00:07.8]} 59. Rb5 {[%clk 0:00:14.7]}
59... Ke6 {[%clk 0:00:08.7]} 60. Rb6+ {[%clk 0:00:15.7]} 60... Kf7 {[%clk
0:00:09.7]} 61. Kf3 {[%clk 0:00:16.6]} 61... Bf6 {[%clk 0:00:09.4]} 62. Rb7+
{[%clk 0:00:17.5]} 62... Ke6 {[%clk 0:00:09.6]} 63. Rb6+ {[%clk 0:00:18.9]}
63... Kf5 {[%clk 0:00:10]} 64. Rb5+ {[%clk 0:00:19.7]} 64... Ke6 {[%clk
0:00:11.1]} 65. Ke4 {[%clk 0:00:19.2]} 65... Ra4+ {[%clk 0:00:11.5]} 66. Kf3
{[%clk 0:00:20.6]} 66... Ra3 {[%clk 0:00:12.2]} 67. Rb6+ {[%clk 0:00:21.1]}
67... Kf5 {[%clk 0:00:12.4]} 68. Rb5+ {[%clk 0:00:22.5]} 68... Ke6 {[%clk
0:00:12.8]} 69. Kg2 {[%clk 0:00:23.9]} 69... Ra4 {[%clk 0:00:13.1]} 70. Rb8
{[%clk 0:00:23.6]} 70... Ra2 {[%clk 0:00:13.3]} 71. Kf3 {[%clk 0:00:23.6]} 71...
Ra4 {[%clk 0:00:13.5]} 72. Rg8 {[%clk 0:00:24.3]} 72... Kf5 {[%clk 0:00:13.6]}
73. Rc8 {[%clk 0:00:25.4]} 73... Ra3 {[%clk 0:00:14.4]} 74. Kg2 {[%clk
0:00:25.4]} 74... Ke6 {[%clk 0:00:15.1]} 75. Rc6+ {[%clk 0:00:26.2]} 75... Kf5
{[%clk 0:00:16.1]} 76. Bc5 {[%clk 0:00:24.7]} 76... Rb3 {[%clk 0:00:15.5]} 77.
Be3 {[%clk 0:00:20.8]} 77... Ra3 {[%clk 0:00:16]} 78. Rc8 {[%clk 0:00:21.3]}
78... Rb3 {[%clk 0:00:17]} 79. Rf8 {[%clk 0:00:22.1]} 79... Ke6 {[%clk
0:00:17.5]} 80. Re8+ {[%clk 0:00:22.4]} 80... Kf5 {[%clk 0:00:18]} 81. Ra8
{[%clk 0:00:23.5]} 81... Rd3 {[%clk 0:00:17.9]} 82. Kf3 {[%clk 0:00:23.5]} 82...
Rb3 {[%clk 0:00:18.7]} 83. Ra5+ {[%clk 0:00:23.6]} 83... Ke6 {[%clk 0:00:19.5]}
84. Rc5 {[%clk 0:00:20.5]} 84... Ra3 {[%clk 0:00:19.9]} 85. Kg2 {[%clk
0:00:21.2]} 85... Rb3 {[%clk 0:00:20.7]} 86. Ra5 {[%clk 0:00:22.2]} 86... Rd3
{[%clk 0:00:21.2]} 87. Kf1 {[%clk 0:00:21.3]} 87... Rb3 {[%clk 0:00:21]} 88. Ke2
{[%clk 0:00:22.1]} 88... Rb2+ {[%clk 0:00:21.3]} 89. Kf3 {[%clk 0:00:21.7]}
89... Rb3 {[%clk 0:00:21.4]} 90. Kg2 {[%clk 0:00:22.6]} 90... Rd3 {[%clk
0:00:21.2]} 91. Ra4 {[%clk 0:00:23.6]} 91... Rb3 {[%clk 0:00:22.1]} 92. Kf1
{[%clk 0:00:21.9]} 92... Rb1+ {[%clk 0:00:22.3]} 93. Ke2 {[%clk 0:00:23.1]}
93... Rb3 {[%clk 0:00:23]} 94. Kd2 {[%clk 0:00:18.7]} 94... Rb5 {[%clk
0:00:23.1]} 95. Ke2 {[%clk 0:00:19.2]} 95... Rb2+ {[%clk 0:00:23.9]} 96. Kf3
{[%clk 0:00:20.5]} 96... Rb3 {[%clk 0:00:25]} 97. Ra6+ {[%clk 0:00:21]} 97...
Kf5 {[%clk 0:00:25.5]} 98. Ra5+ {[%clk 0:00:22.4]} 98... Ke6 {[%clk 0:00:25.9]}
99. Kg2 {[%clk 0:00:21.4]} 99... Rb4 {[%clk 0:00:26.1]} 100. Ra6+ {[%clk
0:00:21.1]} 100... Kf5 {[%clk 0:00:26.5]} 101. Bd2 {[%clk 0:00:22.1]} 101... Rb3
{[%clk 0:00:27.2]} 102. Ra5+ {[%clk 0:00:21]} 102... Ke6 {[%clk 0:00:27.4]} 103.
Be3 {[%clk 0:00:17.3]} 103... Rd3 {[%clk 0:00:27.1]} 104. Ra4 {[%clk 0:00:16.9]}
104... Kf5 {[%clk 0:00:27.5]} 105. Rf4+ {[%clk 0:00:16.9]} 105... Ke6 {[%clk
0:00:27.4]} 106. Re4+ {[%clk 0:00:15.6]} 106... Kf5 {[%clk 0:00:27.8]} 107. Rf4+
{[%clk 0:00:17.2]} 107... Ke6 {[%clk 0:00:28.3]} 108. Ra4 {[%clk 0:00:19.1]}
108... Rb3 {[%clk 0:00:28.5]} 109. h4 {[%clk 0:00:16.9]} 109... Kf5 {[%clk
0:00:26.8]} 110. Kf3 {[%clk 0:00:16.3]} 110... Rb5 {[%clk 0:00:25.4]} 111. Rf4+
{[%clk 0:00:15.3]} 111... Ke6 {[%clk 0:00:25.7]} 112. Re4+ {[%clk 0:00:16.6]}
112... Kf5 {[%clk 0:00:26.5]} 113. Rf4+ {[%clk 0:00:17.8]} 113... Ke6 {[%clk
0:00:27.5]} 114. Ra4 {[%clk 0:00:19.7]} 114... Kf5 {[%clk 0:00:27.8]} 115. Rf4+
{[%clk 0:00:19.2]} 115... Ke6 {[%clk 0:00:28.6]} 116. Ra4 {[%clk 0:00:21]}
116... Kf5 {[%clk 0:00:29.6]} 117. Rc4 {[%clk 0:00:20.8]} 117... Ke6 {[%clk
0:00:29.3]} 118. Rc6+ {[%clk 0:00:20.8]} 118... Kf5 {[%clk 0:00:29.8]} 119. Rc4
{[%clk 0:00:22.4]} 119... Ra5 {[%clk 0:00:30.1]} 120. Rf4+ {[%clk 0:00:19.4]}
120... Ke6 {[%clk 0:00:30.6]} 121. Re4+ {[%clk 0:00:20.7]} 121... Kf5 {[%clk
0:00:31.5]} 122. Rf4+ {[%clk 0:00:22]} 122... Ke6 {[%clk 0:00:32.4]} 123. Rb4
{[%clk 0:00:23.6]} 123... Kf5 {[%clk 0:00:29.9]} 124. Rf4+ {[%clk 0:00:20.5]}
124... Ke6 {[%clk 0:00:30.5]} 125. Re4+ {[%clk 0:00:21.8]} 125... Kf5 {[%clk
0:00:31.1]} 126. Rf4+ {[%clk 0:00:23]} 126... Ke6 {[%clk 0:00:32]} 127. Re4+
{[%clk 0:00:24.4]} 127... Kf5 {[%clk 0:00:32.6]} 128. Rf4+ {[%clk 0:00:25.6]}
1/2-1/2

[Event "*** Titled Tuesday 3|2 Blitz"]
[Site "Chess.com"]
[Date "2017.05.02"]
[Round "5"]
[White "GrigorGrigorov"]
[Black "matiss90"]
[Result "1-0"]
[WhiteElo "2507"]
[BlackElo "2347"]
[TimeControl "180+2"]
[EndTime "14:00:15 PDT"]
[Termination "GrigorGrigorov won by resignation"]

1. d4 {[%clk 0:03:01.5]} 1... Nf6 {[%clk 0:03:00.5]} 2. Nf3 {[%clk 0:02:58.4]}
2... g6 {[%clk 0:03:01.1]} 3. Bg5 {[%clk 0:02:59.1]} 3... Bg7 {[%clk 0:03:02]}
4. c3 {[%clk 0:02:59.8]} 4... O-O {[%clk 0:03:02.2]} 5. Nbd2 {[%clk 0:03:00.9]}
5... d6 {[%clk 0:03:02.3]} 6. e4 {[%clk 0:03:01.6]} 6... Nbd7 {[%clk 0:03:03.2]}
7. Be2 {[%clk 0:03:02.7]} 7... h6 {[%clk 0:03:02.5]} 8. Bh4 {[%clk 0:03:01.4]}
8... e5 {[%clk 0:03:03.2]} 9. dxe5 {[%clk 0:03:02.2]} 9... dxe5 {[%clk
0:03:03.8]} 10. O-O {[%clk 0:03:03.3]} 10... Qe8 {[%clk 0:03:00.4]} 11. Qc2
{[%clk 0:03:00.7]} 11... Nh5 {[%clk 0:03:00.4]} 12. Rfe1 {[%clk 0:03:01.6]}
12... Nf4 {[%clk 0:02:59.5]} 13. Bf1 {[%clk 0:03:02.7]} 13... Nc5 {[%clk
0:02:57.5]} 14. Nc4 {[%clk 0:03:01.5]} 14... Bg4 {[%clk 0:02:55.1]} 15. Nfd2
{[%clk 0:03:01.8]} 15... g5 {[%clk 0:02:53.7]} 16. Bg3 {[%clk 0:03:00.4]} 16...
Rd8 {[%clk 0:02:52.3]} 17. Ne3 {[%clk 0:03:00.2]} 17... Be6 {[%clk 0:02:49.4]}
18. Nf5 {[%clk 0:02:53.1]} 18... Bxf5 {[%clk 0:02:10.9]} 19. exf5 {[%clk
0:02:52.9]} 19... Qd7 {[%clk 0:02:11.3]} 20. Red1 {[%clk 0:02:40.4]} 20... e4
{[%clk 0:02:07.2]} 21. b4 {[%clk 0:02:36.3]} 21... Ncd3 {[%clk 0:02:03.8]} 22.
f6 {[%clk 0:02:16.5]} 22... Bxf6 {[%clk 0:01:53.8]} 23. Nxe4 {[%clk 0:02:16.3]}
1-0

[Event "*** Titled Tuesday 3|2 Blitz"]
[Site "Chess.com"]
[Date "2017.05.02"]
[Round "5"]
[White "pKiLz5Rn9b"]
[Black "Abrito99"]
[Result "1-0"]
[WhiteElo "2458"]
[BlackElo "2285"]
[TimeControl "180+2"]
[EndTime "14:00:18 PDT"]
[Termination "pKiLz5Rn9b won by resignation"]

1. d4 {[%clk 0:03:02]} 1... Nf6 {[%clk 0:02:59.4]} 2. Nf3 {[%clk 0:03:02.9]}
2... b6 {[%clk 0:02:58.4]} 3. g3 {[%clk 0:02:59.1]} 3... Bb7 {[%clk 0:02:59.3]}
4. Bg2 {[%clk 0:03:00.7]} 4... e6 {[%clk 0:03:01]} 5. O-O {[%clk 0:03:01.9]}
5... Be7 {[%clk 0:03:02.4]} 6. c4 {[%clk 0:03:01.2]} 6... O-O {[%clk 0:03:04]}
7. Nc3 {[%clk 0:03:02.5]} 7... Ne4 {[%clk 0:03:05]} 8. Nxe4 {[%clk 0:03:00.5]}
8... Bxe4 {[%clk 0:03:06.9]} 9. Ne1 {[%clk 0:03:02]} 9... Bxg2 {[%clk
0:03:05.9]} 10. Nxg2 {[%clk 0:03:03.9]} 10... c5 {[%clk 0:03:03.7]} 11. d5
{[%clk 0:03:04]} 11... exd5 {[%clk 0:03:04.7]} 12. Qxd5 {[%clk 0:02:56.6]} 12...
Nc6 {[%clk 0:03:05.7]} 13. Rd1 {[%clk 0:02:57.2]} 13... Nd4 {[%clk 0:03:00.9]}
14. e3 {[%clk 0:02:16.3]} 14... Nc2 {[%clk 0:02:41.8]} 15. Rb1 {[%clk
0:02:16.6]} 15... Nb4 {[%clk 0:02:43.5]} 16. Qf5 {[%clk 0:01:53.8]} 16... Nxa2
{[%clk 0:02:38.3]} 17. Rxd7 {[%clk 0:01:53.3]} 17... Qc8 {[%clk 0:02:39.3]} 18.
e4 {[%clk 0:01:13.8]} 18... Bf6 {[%clk 0:02:31.9]} 19. Bf4 {[%clk 0:01:00.6]}
19... g6 {[%clk 0:02:21.4]} 20. Qxf6 {[%clk 0:00:58.1]} 1-0

[Event "*** Titled Tuesday 3|2 Blitz"]
[Site "Chess.com"]
[Date "2017.05.02"]
[Round "5"]
[White "MagnusCarlsen"]
[Black "bancsoo"]
[Result "1-0"]
[WhiteElo "2982"]
[BlackElo "2596"]
[TimeControl "180+2"]
[EndTime "14:01:08 PDT"]
[Termination "MagnusCarlsen won by resignation"]

1. e4 {[%clk 0:03:01.8]} 1... e5 {[%clk 0:03:00.1]} 2. Nf3 {[%clk 0:03:02.2]}
2... Nc6 {[%clk 0:03:01.8]} 3. Bc4 {[%clk 0:03:03.3]} 3... Bc5 {[%clk
0:03:02.1]} 4. O-O {[%clk 0:03:03]} 4... Nf6 {[%clk 0:03:03.2]} 5. d3 {[%clk
0:03:04.2]} 5... O-O {[%clk 0:03:01.9]} 6. h3 {[%clk 0:03:03.9]} 6... a6 {[%clk
0:02:58.9]} 7. c3 {[%clk 0:02:59.8]} 7... Ba7 {[%clk 0:02:56.1]} 8. a4 {[%clk
0:02:54.3]} 8... h6 {[%clk 0:02:55.2]} 9. Re1 {[%clk 0:02:53.4]} 9... d6 {[%clk
0:02:55.8]} 10. Na3 {[%clk 0:02:45.2]} 10... Ne7 {[%clk 0:02:55]} 11. Nc2 {[%clk
0:02:45.9]} 11... Ng6 {[%clk 0:02:55.5]} 12. Be3 {[%clk 0:02:47.3]} 12... c6
{[%clk 0:02:41.9]} 13. Bxa7 {[%clk 0:02:47.5]} 13... Rxa7 {[%clk 0:02:43]} 14.
d4 {[%clk 0:02:44.9]} 14... a5 {[%clk 0:02:36.6]} 15. dxe5 {[%clk 0:02:33.8]}
15... dxe5 {[%clk 0:02:28.2]} 16. Qxd8 {[%clk 0:02:34.1]} 16... Rxd8 {[%clk
0:02:28.8]} 17. Rad1 {[%clk 0:02:34.5]} 17... Bd7 {[%clk 0:02:25.1]} 18. Ne3
{[%clk 0:02:19.7]} 18... Raa8 {[%clk 0:02:16.9]} 19. Nf5 {[%clk 0:02:20.9]}
19... Ne8 {[%clk 0:01:54.5]} 20. Rd2 {[%clk 0:02:17.3]} 20... Be6 {[%clk
0:01:54.4]} 21. Bxe6 {[%clk 0:02:15.6]} 21... fxe6 {[%clk 0:01:55.2]} 22. Ne3
{[%clk 0:02:16.7]} 22... Nd6 {[%clk 0:01:50.6]} 23. Red1 {[%clk 0:02:16.7]}
23... Nf7 {[%clk 0:01:38.8]} 24. Rxd8+ {[%clk 0:02:18.6]} 24... Rxd8 {[%clk
0:01:33.3]} 25. Rxd8+ {[%clk 0:02:19]} 25... Nxd8 {[%clk 0:01:34.9]} 26. Nc4
{[%clk 0:02:20.7]} 26... b5 {[%clk 0:01:32.5]} 27. axb5 {[%clk 0:02:21.2]} 27...
cxb5 {[%clk 0:01:33.8]} 28. Nxa5 {[%clk 0:02:22.6]} 28... Kf7 {[%clk 0:01:32.6]}
29. g3 {[%clk 0:02:23.4]} 29... Ke7 {[%clk 0:01:32.6]} 30. Ne1 {[%clk
0:02:21.9]} 30... Kd6 {[%clk 0:01:32.9]} 31. Nd3 {[%clk 0:02:22.7]} 31... Ne7
{[%clk 0:01:31.1]} 32. Kf1 {[%clk 0:02:17.7]} 32... Nc8 {[%clk 0:01:32.2]} 33.
c4 {[%clk 0:02:15.2]} 1-0

[Event "*** Titled Tuesday 3|2 Blitz"]
[Site "Chess.com"]
[Date "2017.05.02"]
[Round "5"]
[White "Enzy63"]
[Black "Rating-Schmating"]
[Result "0-1"]
[WhiteElo "2030"]
[BlackElo "2203"]
[TimeControl "180+2"]
[EndTime "14:02:06 PDT"]
[Termination "Rating-Schmating won on time"]

1. d4 {[%clk 0:03:02]} 1... Nf6 {[%clk 0:03:00.5]} 2. Nf3 {[%clk 0:03:02.9]}
2... d5 {[%clk 0:03:00.9]} 3. c4 {[%clk 0:03:03.7]} 3... Bf5 {[%clk 0:03:00.9]}
4. Nc3 {[%clk 0:02:51.2]} 4... e6 {[%clk 0:03:00.1]} 5. g3 {[%clk 0:02:51]} 5...
Nc6 {[%clk 0:03:00.9]} 6. Nh4 {[%clk 0:02:35.3]} 6... Be4 {[%clk 0:02:56.1]} 7.
f3 {[%clk 0:02:34.2]} 7... Bg6 {[%clk 0:02:56.3]} 8. Nxg6 {[%clk 0:02:33.2]}
8... hxg6 {[%clk 0:02:57.4]} 9. cxd5 {[%clk 0:02:22.3]} 9... Nxd5 {[%clk
0:02:53.5]} 10. e4 {[%clk 0:02:22]} 10... Nf6 {[%clk 0:02:40]} 11. Be3 {[%clk
0:02:21.9]} 11... Bb4 {[%clk 0:02:39.8]} 12. Bg2 {[%clk 0:02:05.2]} 12... Ba5
{[%clk 0:02:36.7]} 13. Qa4 {[%clk 0:01:08]} 13... Bb6 {[%clk 0:02:33.4]} 14. Rd1
{[%clk 0:01:08.7]} 14... O-O {[%clk 0:02:29]} 15. Bf2 {[%clk 0:00:52.3]} 15...
Qe7 {[%clk 0:02:25.7]} 16. O-O {[%clk 0:00:52]} 16... Rfd8 {[%clk 0:02:26.9]}
17. h3 {[%clk 0:00:45.4]} 17... Rd7 {[%clk 0:02:22.7]} 18. f4 {[%clk 0:00:44.9]}
18... Rad8 {[%clk 0:02:20.8]} 19. e5 {[%clk 0:00:25.3]} 19... Nh5 {[%clk
0:02:13.9]} 20. d5 {[%clk 0:00:26.2]} 20... Bxf2+ {[%clk 0:02:10.8]} 21. Rxf2
{[%clk 0:00:26.9]} 21... exd5 {[%clk 0:02:10.9]} 22. Nxd5 {[%clk 0:00:27.4]}
22... Qc5 {[%clk 0:02:07.1]} 23. Qc2 {[%clk 0:00:16.1]} 23... Qxc2 {[%clk
0:02:06.9]} 24. Rxc2 {[%clk 0:00:17.9]} 24... Nxg3 {[%clk 0:02:08]} 25. b4
{[%clk 0:00:16.7]} 25... Nxb4 {[%clk 0:02:04.1]} 26. Rcd2 {[%clk 0:00:04.3]}
26... Nxd5 {[%clk 0:02:04.5]} 27. Bxd5 {[%clk 0:00:03.7]} 27... Kh7 {[%clk
0:02:01.6]} 28. Kg2 {[%clk 0:00:03.5]} 28... Nf5 {[%clk 0:02:01.5]} 0-1

[Event "*** Titled Tuesday 3|2 Blitz"]
[Site "Chess.com"]
[Date "2017.05.02"]
[Round "5"]
[White "WeiYi1999"]
[Black "Wolverine_master"]
[Result "1-0"]
[WhiteElo "2072"]
[BlackElo "1945"]
[TimeControl "180+2"]
[EndTime "14:02:08 PDT"]
[Termination "WeiYi1999 won on time"]

1. e4 {[%clk 0:02:58.9]} 1... d5 {[%clk 0:03:00.5]} 2. exd5 {[%clk 0:02:59.8]}
2... Qxd5 {[%clk 0:03:02.4]} 3. Nc3 {[%clk 0:02:59.7]} 3... Qd6 {[%clk
0:03:03.4]} 4. d4 {[%clk 0:03:00.6]} 4... Nf6 {[%clk 0:03:04.9]} 5. Nf3 {[%clk
0:02:58.7]} 5... a6 {[%clk 0:03:06.1]} 6. Bc4 {[%clk 0:02:56.2]} 6... Nc6 {[%clk
0:03:06.7]} 7. d5 {[%clk 0:02:44.8]} 7... Ne5 {[%clk 0:02:45.2]} 8. Bb3 {[%clk
0:02:46.7]} 8... Bg4 {[%clk 0:02:39.9]} 9. O-O {[%clk 0:02:41.6]} 9... O-O-O
{[%clk 0:02:29.7]} 10. Nxe5 {[%clk 0:02:03.9]} 10... Bxd1 {[%clk 0:02:05.7]} 11.
Nxf7 {[%clk 0:02:04.2]} 11... Qb4 {[%clk 0:01:33.4]} 12. Rxd1 {[%clk 0:01:20.6]}
12... e6 {[%clk 0:00:16.7]} 13. Nxd8 {[%clk 0:01:11.4]} 13... Kxd8 {[%clk
0:00:16.3]} 14. dxe6+ {[%clk 0:01:13]} 14... Bd6 {[%clk 0:00:16.9]} 15. Be3
{[%clk 0:01:10.6]} 15... Qh4 {[%clk 0:00:08.4]} 16. e7+ {[%clk 0:01:05.8]} 1-0

[Event "*** Titled Tuesday 3|2 Blitz"]
[Site "Chess.com"]
[Date "2017.05.02"]
[Round "5"]
[White "eldur16"]
[Black "Aygehovit1992"]
[Result "0-1"]
[WhiteElo "2448"]
[BlackElo "2517"]
[TimeControl "180+2"]
[EndTime "14:02:12 PDT"]
[Termination "Aygehovit1992 won by resignation"]

1. d4 {[%clk 0:03:02]} 1... d6 {[%clk 0:03:00]} 2. e4 {[%clk 0:03:01.9]} 2... g6
{[%clk 0:03:01.2]} 3. Nc3 {[%clk 0:03:02.3]} 3... Nf6 {[%clk 0:03:02.3]} 4. Nf3
{[%clk 0:03:02.3]} 4... Bg7 {[%clk 0:03:03.1]} 5. Be2 {[%clk 0:03:03.1]} 5...
O-O {[%clk 0:03:04.6]} 6. O-O {[%clk 0:03:03.9]} 6... Nc6 {[%clk 0:03:06.2]} 7.
d5 {[%clk 0:03:03.9]} 7... Nb8 {[%clk 0:03:06.3]} 8. h3 {[%clk 0:03:01.5]} 8...
e5 {[%clk 0:03:04.9]} 9. Bg5 {[%clk 0:02:56.7]} 9... h6 {[%clk 0:03:03.4]} 10.
Be3 {[%clk 0:02:57.1]} 10... Nbd7 {[%clk 0:02:58.5]} 11. a4 {[%clk 0:02:54.2]}
11... Nc5 {[%clk 0:02:56.7]} 12. Nd2 {[%clk 0:02:54.5]} 12... a5 {[%clk
0:02:57]} 13. Re1 {[%clk 0:02:52.7]} 13... Ne8 {[%clk 0:02:57.5]} 14. Nb3 {[%clk
0:02:44.4]} 14... Nxb3 {[%clk 0:02:54.3]} 15. cxb3 {[%clk 0:02:44.7]} 15... f5
{[%clk 0:02:55.8]} 16. f3 {[%clk 0:02:37.8]} 16... f4 {[%clk 0:02:56.7]} 17. Bf2
{[%clk 0:02:37.9]} 17... Bf6 {[%clk 0:02:57.8]} 18. Qd2 {[%clk 0:02:37.3]} 18...
Bh4 {[%clk 0:02:57.3]} 19. Bf1 {[%clk 0:02:34.6]} 19... Bxf2+ {[%clk 0:02:57.4]}
20. Qxf2 {[%clk 0:02:34.8]} 20... Rf7 {[%clk 0:02:58.8]} 21. Rac1 {[%clk
0:02:33.1]} 21... Rg7 {[%clk 0:02:59.6]} 22. Nb5 {[%clk 0:02:29.6]} 22... g5
{[%clk 0:03:00.7]} 23. Rc3 {[%clk 0:02:28.8]} 23... h5 {[%clk 0:02:49.1]} 24.
Be2 {[%clk 0:02:21.1]} 24... Bd7 {[%clk 0:02:34.2]} 25. Rec1 {[%clk 0:02:19.3]}
25... c6 {[%clk 0:02:22.3]} 26. dxc6 {[%clk 0:02:07.6]} 26... bxc6 {[%clk
0:02:24.2]} 27. Na7 {[%clk 0:01:59.1]} 27... g4 {[%clk 0:02:16.1]} 28. fxg4
{[%clk 0:01:48.6]} 28... hxg4 {[%clk 0:02:13.4]} 29. Nxc6 {[%clk 0:01:48.4]}
29... Bxc6 {[%clk 0:02:04.8]} 30. Rxc6 {[%clk 0:01:44.9]} 30... gxh3 {[%clk
0:02:05.4]} 31. Bf1 {[%clk 0:01:29]} 31... hxg2 {[%clk 0:02:03.1]} 32. Bc4+
{[%clk 0:01:16.5]} 32... Kf8 {[%clk 0:02:02]} 33. Be6 {[%clk 0:00:55.4]} 33...
Qf6 {[%clk 0:01:51.8]} 34. Bf5 {[%clk 0:00:51.6]} 34... Qh6 {[%clk 0:01:49.7]}
0-1

[Event "*** Titled Tuesday 3|2 Blitz"]
[Site "Chess.com"]
[Date "2017.05.02"]
[Round "5"]
[White "djano"]
[Black "TheNextLevelFan"]
[Result "0-1"]
[WhiteElo "2368"]
[BlackElo "2396"]
[TimeControl "180+2"]
[EndTime "14:02:14 PDT"]
[Termination "TheNextLevelFan won by resignation"]

1. d4 {[%clk 0:03:02]} 1... Nf6 {[%clk 0:02:59]} 2. Bf4 {[%clk 0:03:02]} 2... d5
{[%clk 0:02:57.9]} 3. e3 {[%clk 0:03:02]} 3... c6 {[%clk 0:02:58.4]} 4. c4
{[%clk 0:02:50.2]} 4... g6 {[%clk 0:02:54.6]} 5. Nc3 {[%clk 0:02:48.7]} 5... Bg7
{[%clk 0:02:54.1]} 6. Nf3 {[%clk 0:02:49.6]} 6... O-O {[%clk 0:02:54.1]} 7. Be2
{[%clk 0:02:41.4]} 7... dxc4 {[%clk 0:02:37]} 8. Bxc4 {[%clk 0:02:40]} 8... Nbd7
{[%clk 0:02:37.1]} 9. O-O {[%clk 0:02:39.2]} 9... Nb6 {[%clk 0:02:38]} 10. Bb3
{[%clk 0:02:37.2]} 10... a5 {[%clk 0:02:37.5]} 11. Rc1 {[%clk 0:02:26.5]} 11...
Bf5 {[%clk 0:02:29]} 12. Re1 {[%clk 0:02:10.6]} 12... Ne4 {[%clk 0:02:27.4]} 13.
h3 {[%clk 0:01:24.1]} 13... Nxc3 {[%clk 0:02:22.5]} 14. bxc3 {[%clk 0:01:24.4]}
14... a4 {[%clk 0:02:17.7]} 15. Bc2 {[%clk 0:01:25.1]} 15... Bxc2 {[%clk
0:02:15.3]} 16. Qxc2 {[%clk 0:01:25.3]} 16... Nc4 {[%clk 0:02:11]} 17. e4 {[%clk
0:01:18.9]} 17... Qa5 {[%clk 0:02:06]} 18. e5 {[%clk 0:01:14.9]} 18... Qd5
{[%clk 0:02:01]} 19. Nd2 {[%clk 0:01:04.2]} 19... Nxd2 {[%clk 0:01:53.8]} 20.
Qxd2 {[%clk 0:01:06.1]} 20... b5 {[%clk 0:01:54.3]} 21. Bg5 {[%clk 0:00:57.4]}
21... f6 {[%clk 0:01:52.9]} 22. exf6 {[%clk 0:00:55.4]} 22... exf6 {[%clk
0:01:53.3]} 23. Bh6 {[%clk 0:00:53.8]} 23... Rf7 {[%clk 0:01:53.6]} 24. Bxg7
{[%clk 0:00:51.6]} 24... Kxg7 {[%clk 0:01:54.6]} 25. Qf4 {[%clk 0:00:43.5]}
25... Qxa2 {[%clk 0:01:51.9]} 26. c4 {[%clk 0:00:37.7]} 26... bxc4 {[%clk
0:01:48.3]} 27. Re6 {[%clk 0:00:38.5]} 27... Rc8 {[%clk 0:01:42.8]} 28. Rce1
{[%clk 0:00:35.8]} 28... c3 {[%clk 0:01:41.4]} 29. Rxf6 {[%clk 0:00:37.1]} 29...
Rxf6 {[%clk 0:01:39.7]} 30. Re7+ {[%clk 0:00:34.9]} 30... Rf7 {[%clk 0:01:40.9]}
31. Qe5+ {[%clk 0:00:34.3]} 31... Kg8 {[%clk 0:01:41.4]} 0-1